[Event "*** MasterClass Titled Tuesday Blitz"]
[Site "Chess.com"]
[Date "2017.11.07"]
[Round "3"]
[White "pastouche06"]
[Black "kikydu96"]
[Result "1-0"]
[WhiteElo "2341"]
[BlackElo "2389"]
[TimeControl "180+2"]
[EndTime "14:39:59 PST"]
[Termination "pastouche06 won by resignation"]

1. e4 {[%clk 0:03:01.9]} 1... e5 {[%clk 0:03:00.1]} 2. f4 {[%clk 0:03:00.5]}
2... exf4 {[%clk 0:03:00.1]} 3. Nf3 {[%clk 0:03:01.4]} 3... d5 {[%clk
0:03:01.1]} 4. exd5 {[%clk 0:03:01.8]} 4... Nf6 {[%clk 0:03:02.7]} 5. Nc3 {[%clk
0:03:02.9]} 5... Nxd5 {[%clk 0:03:02.7]} 6. Bc4 {[%clk 0:03:03.7]} 6... Be6
{[%clk 0:03:02.3]} 7. Nxd5 {[%clk 0:02:53]} 7... Bxd5 {[%clk 0:03:04.2]} 8. Qe2+
{[%clk 0:02:53.6]} 8... Be7 {[%clk 0:03:03.4]} 9. d4 {[%clk 0:02:54.1]} 9... O-O
{[%clk 0:03:00.7]} 10. Bxd5 {[%clk 0:02:46.4]} 10... Qxd5 {[%clk 0:03:00.7]} 11.
Qxe7 {[%clk 0:02:44]} 11... Nc6 {[%clk 0:02:59.6]} 12. Qc5 {[%clk 0:02:15.1]}
12... Rfe8+ {[%clk 0:02:57.8]} 13. Kf2 {[%clk 0:02:11.9]} 13... Qe6 {[%clk
0:02:29.3]} 14. Re1 {[%clk 0:02:09.4]} 14... Qf6 {[%clk 0:02:30]} 15. Bd2 {[%clk
0:01:59.2]} 15... h6 {[%clk 0:02:19.5]} 16. Rxe8+ {[%clk 0:01:53.9]} 16... Rxe8
{[%clk 0:02:19.6]} 17. Re1 {[%clk 0:01:55.4]} 17... Rxe1 {[%clk 0:02:20.4]} 18.
Bxe1 {[%clk 0:01:55.5]} 18... g5 {[%clk 0:02:20]} 19. h3 {[%clk 0:01:52]} 19...
Qe6 {[%clk 0:02:17.7]} 20. d5 {[%clk 0:01:26.7]} 20... Qf5 {[%clk 0:02:17.5]}
21. b4 {[%clk 0:00:53]} 21... h5 {[%clk 0:02:16.1]} 22. dxc6 {[%clk 0:00:51]}
1-0

[Event "*** MasterClass Titled Tuesday Blitz"]
[Site "Chess.com"]
[Date "2017.11.07"]
[Round "3"]
[White "VitaliyBernadskiy"]
[Black "Bryakin_Mikhail"]
[Result "1-0"]
[WhiteElo "2555"]
[BlackElo "2492"]
[TimeControl "180+2"]
[EndTime "14:40:25 PST"]
[Termination "VitaliyBernadskiy won by resignation"]

1. e4 {[%clk 0:03:01.9]} 1... c6 {[%clk 0:03:00.9]} 2. d4 {[%clk 0:03:02.4]}
2... d5 {[%clk 0:03:02.8]} 3. e5 {[%clk 0:03:03.9]} 3... Bf5 {[%clk 0:03:03.5]}
4. Nf3 {[%clk 0:03:05]} 4... e6 {[%clk 0:03:05.1]} 5. Be2 {[%clk 0:03:06.5]}
5... Nd7 {[%clk 0:03:06.4]} 6. c3 {[%clk 0:03:07.8]} 6... Bg6 {[%clk 0:03:07.4]}
7. a4 {[%clk 0:03:08.4]} 7... Nh6 {[%clk 0:03:08.2]} 8. Na3 {[%clk 0:03:09]}
8... Nf5 {[%clk 0:03:08.8]} 9. Nc2 {[%clk 0:03:09.5]} 9... h5 {[%clk 0:03:09.5]}
10. O-O {[%clk 0:03:09.2]} 10... h4 {[%clk 0:03:10.7]} 11. b4 {[%clk 0:03:09.6]}
11... Be7 {[%clk 0:03:11.3]} 12. a5 {[%clk 0:03:10.1]} 12... a6 {[%clk
0:03:11.7]} 13. Ne3 {[%clk 0:03:09.8]} 13... Nxe3 {[%clk 0:03:03.5]} 14. Bxe3
{[%clk 0:03:11.2]} 14... Bf5 {[%clk 0:03:03.4]} 15. Ne1 {[%clk 0:03:11.7]} 15...
Nf8 {[%clk 0:02:43.4]} 16. Nd3 {[%clk 0:03:10]} 16... g6 {[%clk 0:02:42]} 17.
Nc5 {[%clk 0:03:09.4]} 17... Qc7 {[%clk 0:02:42.7]} 18. g4 {[%clk 0:02:53.2]}
18... hxg3 {[%clk 0:02:39.3]} 19. fxg3 {[%clk 0:02:54.7]} 19... g5 {[%clk
0:02:20.8]} 20. Bd3 {[%clk 0:02:48.7]} 20... Bg6 {[%clk 0:02:15.8]} 21. Bxg6
{[%clk 0:02:44.8]} 21... Nxg6 {[%clk 0:02:17.7]} 22. Qg4 {[%clk 0:02:46.2]}
22... Rg8 {[%clk 0:02:08.2]} 23. Rf2 {[%clk 0:02:41.2]} 23... Bxc5 {[%clk
0:02:03.6]} 24. bxc5 {[%clk 0:02:42.7]} 24... Ne7 {[%clk 0:02:04.6]} 25. Bxg5
{[%clk 0:02:38]} 25... Nf5 {[%clk 0:02:05.4]} 26. h4 {[%clk 0:02:38.8]} 26...
Qe7 {[%clk 0:01:54.6]} 27. Qxf5 {[%clk 0:02:29.9]} 27... exf5 {[%clk 0:01:49.6]}
28. Bxe7 {[%clk 0:02:30]} 28... Kxe7 {[%clk 0:01:51]} 29. Kh2 {[%clk 0:02:31.3]}
29... Rg4 {[%clk 0:01:39.5]} 30. Rxf5 {[%clk 0:02:30.6]} 30... Re4 {[%clk
0:01:40.4]} 31. Raf1 {[%clk 0:02:30.7]} 31... Rf8 {[%clk 0:01:41.2]} 32. h5
{[%clk 0:02:31]} 32... Re3 {[%clk 0:01:38.1]} 33. R1f3 {[%clk 0:02:31.9]} 33...
Re2+ {[%clk 0:01:37.3]} 34. Kh3 {[%clk 0:02:32.9]} 34... Ra2 {[%clk 0:01:38.2]}
35. g4 {[%clk 0:02:34]} 35... Rxa5 {[%clk 0:01:39.3]} 36. g5 {[%clk 0:02:35.1]}
36... Ra1 {[%clk 0:01:36.3]} 37. g6 {[%clk 0:02:35.9]} 37... Rh8 {[%clk
0:01:36.4]} 38. Rxf7+ {[%clk 0:02:36.3]} 38... Ke8 {[%clk 0:01:37.8]} 39. g7
{[%clk 0:02:29.1]} 1-0

[Event "*** MasterClass Titled Tuesday Blitz"]
[Site "Chess.com"]
[Date "2017.11.07"]
[Round "3"]
[White "OparinGrigoriy"]
[Black "Angry_Serb"]
[Result "1-0"]
[WhiteElo "2688"]
[BlackElo "2426"]
[TimeControl "180+2"]
[EndTime "14:40:57 PST"]
[Termination "OparinGrigoriy won by resignation"]

1. e4 {[%clk 0:03:01.9]} 1... e5 {[%clk 0:02:57.4]} 2. Nf3 {[%clk 0:03:03.2]}
2... d6 {[%clk 0:02:57.9]} 3. d4 {[%clk 0:03:03.3]} 3... exd4 {[%clk 0:02:59.8]}
4. Nxd4 {[%clk 0:03:05.2]} 4... Nf6 {[%clk 0:03:01.2]} 5. Nc3 {[%clk 0:03:06.8]}
5... Be7 {[%clk 0:03:02.2]} 6. g3 {[%clk 0:03:07.8]} 6... Bg4 {[%clk 0:03:02.3]}
7. f3 {[%clk 0:03:08.1]} 7... Bd7 {[%clk 0:03:03.3]} 8. Bg2 {[%clk 0:03:09.6]}
8... Nc6 {[%clk 0:03:04.7]} 9. Nde2 {[%clk 0:03:09.9]} 9... O-O {[%clk
0:03:05.3]} 10. O-O {[%clk 0:03:11.5]} 10... Ne5 {[%clk 0:03:02.4]} 11. g4
{[%clk 0:03:11.9]} 11... h6 {[%clk 0:02:55.8]} 12. Ng3 {[%clk 0:03:09.6]} 12...
Re8 {[%clk 0:02:35.8]} 13. h3 {[%clk 0:03:06]} 13... Ng6 {[%clk 0:02:28.7]} 14.
f4 {[%clk 0:03:07.1]} 14... Nh4 {[%clk 0:02:29.4]} 15. Bh1 {[%clk 0:03:08.5]}
15... d5 {[%clk 0:02:24.1]} 16. e5 {[%clk 0:03:07.8]} 16... Bc5+ {[%clk
0:02:25.1]} 17. Kh2 {[%clk 0:03:08.9]} 17... d4 {[%clk 0:02:01.4]} 18. Nce4
{[%clk 0:02:59.3]} 18... Nxe4 {[%clk 0:01:58.3]} 19. Nxe4 {[%clk 0:03:01.2]}
19... Bb6 {[%clk 0:01:59.4]} 20. Bd2 {[%clk 0:02:58.8]} 20... Bc6 {[%clk
0:01:28.1]} 21. Qe2 {[%clk 0:02:59.7]} 21... Qd7 {[%clk 0:01:25.2]} 22. Rae1
{[%clk 0:02:57.9]} 22... Bb5 {[%clk 0:01:25.6]} 23. Qf2 {[%clk 0:02:51.7]} 23...
Bxf1 {[%clk 0:01:26.7]} 24. Qxh4 {[%clk 0:02:41.8]} 24... Bc4 {[%clk 0:01:27.1]}
25. g5 {[%clk 0:02:42.7]} 25... Qe7 {[%clk 0:00:47]} 26. Nf6+ {[%clk 0:02:41.2]}
26... gxf6 {[%clk 0:00:26.2]} 27. gxf6 {[%clk 0:02:41.9]} 27... Qf8 {[%clk
0:00:27.2]} 28. Rg1+ {[%clk 0:02:43.5]} 28... Kh8 {[%clk 0:00:28.2]} 29. Rg7
{[%clk 0:02:45.1]} 29... Qxg7 {[%clk 0:00:27.4]} 30. fxg7+ {[%clk 0:02:47]}
30... Kxg7 {[%clk 0:00:29.3]} 31. Qf6+ {[%clk 0:02:47.7]} 31... Kg8 {[%clk
0:00:24]} 32. f5 {[%clk 0:02:48.4]} 32... Bc5 {[%clk 0:00:21.8]} 33. Bxh6 {[%clk
0:02:48]} 33... Bf8 {[%clk 0:00:22.9]} 34. Qg5+ {[%clk 0:02:47.6]} 34... Kh7
{[%clk 0:00:22.8]} 35. Bxf8 {[%clk 0:02:48.7]} 35... Rxf8 {[%clk 0:00:24.2]} 36.
f6 {[%clk 0:02:50.4]} 1-0

[Event "*** MasterClass Titled Tuesday Blitz"]
[Site "Chess.com"]
[Date "2017.11.07"]
[Round "3"]
[White "BergenChessAcademy"]
[Black "TijanaBlagojevic"]
[Result "0-1"]
[WhiteElo "1590"]
[BlackElo "1980"]
[TimeControl "180+2"]
[EndTime "14:41:46 PST"]
[Termination "TijanaBlagojevic won by checkmate"]

1. d4 {[%clk 0:03:01.9]} 1... d5 {[%clk 0:03:00.8]} 2. c4 {[%clk 0:02:38.1]}
2... c6 {[%clk 0:03:01.2]} 3. Nc3 {[%clk 0:02:34.7]} 3... Nf6 {[%clk 0:03:01.8]}
4. Nf3 {[%clk 0:02:34.7]} 4... e6 {[%clk 0:03:02.8]} 5. cxd5 {[%clk 0:02:33.4]}
5... exd5 {[%clk 0:03:00.3]} 6. Bg5 {[%clk 0:02:34.8]} 6... Nbd7 {[%clk
0:02:58.8]} 7. e3 {[%clk 0:02:35.7]} 7... Be7 {[%clk 0:03:00]} 8. Bd3 {[%clk
0:02:36.5]} 8... Ne4 {[%clk 0:02:58.6]} 9. Nd2 {[%clk 0:02:38.4]} 9... Nxg5
{[%clk 0:02:58.4]} 10. O-O {[%clk 0:02:37.2]} 10... O-O {[%clk 0:02:59]} 11. f4
{[%clk 0:02:31]} 11... Ne6 {[%clk 0:02:55.3]} 12. Qh5 {[%clk 0:02:28.2]} 12...
g6 {[%clk 0:02:54]} 13. Qh6 {[%clk 0:02:28.9]} 13... Ng7 {[%clk 0:02:46.8]} 14.
Nf3 {[%clk 0:02:24.9]} 14... f5 {[%clk 0:02:36]} 15. Ne5 {[%clk 0:02:09.9]}
15... Bf6 {[%clk 0:02:34.2]} 16. Rf3 {[%clk 0:02:04.7]} 16... Bxe5 {[%clk
0:02:29.3]} 17. dxe5 {[%clk 0:02:04.7]} 17... Qe7 {[%clk 0:02:27.1]} 18. h3
{[%clk 0:01:57.4]} 18... Nc5 {[%clk 0:02:27.9]} 19. Bc2 {[%clk 0:01:57.7]} 19...
b5 {[%clk 0:02:28.5]} 20. Ne2 {[%clk 0:01:53]} 20... Ne4 {[%clk 0:02:21.9]} 21.
Nd4 {[%clk 0:01:53.3]} 21... Bb7 {[%clk 0:02:22.9]} 22. g4 {[%clk 0:01:53.3]}
22... a6 {[%clk 0:02:22.5]} 23. Kh2 {[%clk 0:01:50.5]} 23... c5 {[%clk
0:02:23.8]} 24. Ne2 {[%clk 0:01:39.7]} 24... Rad8 {[%clk 0:02:24.5]} 25. Rg1
{[%clk 0:01:38.8]} 25... d4 {[%clk 0:02:24.5]} 26. Bxe4 {[%clk 0:01:35.7]} 26...
Bxe4 {[%clk 0:02:24.5]} 27. Rfg3 {[%clk 0:01:37.2]} 27... d3 {[%clk 0:02:23.6]}
28. Nc3 {[%clk 0:01:37.6]} 28... d2 {[%clk 0:02:24.9]} 29. gxf5 {[%clk
0:01:35.7]} 29... Bxf5 {[%clk 0:02:25.7]} 30. e4 {[%clk 0:01:36.9]} 30... d1=Q
{[%clk 0:02:24.8]} 31. Rxd1 {[%clk 0:01:32.3]} 31... Rxd1 {[%clk 0:02:24.8]} 32.
Nxd1 {[%clk 0:01:34.2]} 32... Bxe4 {[%clk 0:02:26.1]} 33. Nf2 {[%clk 0:01:36.1]}
33... Nf5 {[%clk 0:02:25.6]} 34. Qg5 {[%clk 0:01:32.4]} 34... Qxg5 {[%clk
0:02:25.7]} 35. Rxg5 {[%clk 0:01:34.3]} 35... Bd5 {[%clk 0:02:26.4]} 36. b3
{[%clk 0:01:32]} 36... c4 {[%clk 0:02:27.6]} 37. bxc4 {[%clk 0:01:32.9]} 37...
bxc4 {[%clk 0:02:29.2]} 38. Ng4 {[%clk 0:01:33.3]} 38... Kg7 {[%clk 0:02:21.1]}
39. Nf6 {[%clk 0:01:34.1]} 39... Rd8 {[%clk 0:02:19.5]} 40. Rg1 {[%clk
0:01:33.3]} 40... Be6 {[%clk 0:02:15.6]} 41. Rg2 {[%clk 0:01:24.8]} 41... c3
{[%clk 0:02:15.7]} 42. Ne4 {[%clk 0:01:25.6]} 42... Ne3 {[%clk 0:02:08.3]} 43.
Rg1 {[%clk 0:01:23.3]} 43... c2 {[%clk 0:02:08.1]} 44. Nd6 {[%clk 0:01:24]}
44... Nd1 {[%clk 0:02:05.8]} 45. f5 {[%clk 0:01:21.8]} 45... c1=Q {[%clk
0:02:03.6]} 46. fxe6 {[%clk 0:01:23]} 46... Qf4+ {[%clk 0:02:03.4]} 47. Rg3
{[%clk 0:01:23.8]} 47... Qxe5 {[%clk 0:02:01.4]} 48. Nf7 {[%clk 0:01:21.3]}
48... Rd2+ {[%clk 0:02:01.8]} 49. Kh1 {[%clk 0:01:20.6]} 49... Qe4+ {[%clk
0:02:02.2]} 50. Kg1 {[%clk 0:01:21]} 50... Qe1# {[%clk 0:02:03.3]} 0-1

[Event "*** MasterClass Titled Tuesday Blitz"]
[Site "Chess.com"]
[Date "2017.11.07"]
[Round "3"]
[White "P0ubelle"]
[Black "fidetrainerNET"]
[Result "1-0"]
[WhiteElo "2215"]
[BlackElo "2023"]
[TimeControl "180+2"]
[EndTime "14:42:06 PST"]
[Termination "P0ubelle won by resignation"]

1. e4 {[%clk 0:03:01.1]} 1... c5 {[%clk 0:02:51.7]} 2. Nf3 {[%clk 0:03:01.3]}
2... d6 {[%clk 0:02:51.5]} 3. Bb5+ {[%clk 0:02:59.5]} 3... Nc6 {[%clk
0:02:41.5]} 4. O-O {[%clk 0:02:58.8]} 4... Bd7 {[%clk 0:02:41.8]} 5. c3 {[%clk
0:02:59.2]} 5... g6 {[%clk 0:02:41.3]} 6. Re1 {[%clk 0:02:59.5]} 6... Bg7 {[%clk
0:02:42.1]} 7. d4 {[%clk 0:03:01.1]} 7... cxd4 {[%clk 0:02:41.8]} 8. cxd4 {[%clk
0:03:03]} 8... Nf6 {[%clk 0:02:43]} 9. Nc3 {[%clk 0:02:51.9]} 9... O-O {[%clk
0:02:42.8]} 10. a3 {[%clk 0:02:41.4]} 10... a6 {[%clk 0:02:37.4]} 11. Bc4 {[%clk
0:02:42]} 11... b5 {[%clk 0:02:38.1]} 12. Ba2 {[%clk 0:02:42.8]} 12... Qb6
{[%clk 0:02:39.2]} 13. e5 {[%clk 0:02:42.4]} 13... Ng4 {[%clk 0:02:35.3]} 14. h3
{[%clk 0:02:36.5]} 14... Nh6 {[%clk 0:02:35.5]} 15. e6 {[%clk 0:02:36.9]} 15...
fxe6 {[%clk 0:02:35.4]} 16. Bxe6+ {[%clk 0:02:37.7]} 16... Bxe6 {[%clk
0:02:35.7]} 17. Rxe6 {[%clk 0:02:39.3]} 17... Nf5 {[%clk 0:02:36]} 18. d5 {[%clk
0:02:34.8]} 18... Nd8 {[%clk 0:02:32.8]} 19. Re4 {[%clk 0:02:30.5]} 19... Qb7
{[%clk 0:02:33]} 20. Qe2 {[%clk 0:02:01.1]} 20... h6 {[%clk 0:02:30.3]} 21. g4
{[%clk 0:01:51.2]} 21... e5 {[%clk 0:02:30.9]} 22. dxe6 {[%clk 0:01:47]} 22...
d5 {[%clk 0:02:28.7]} 23. Rf4 {[%clk 0:01:41.2]} 23... Ne7 {[%clk 0:02:17.7]}
24. Rxf8+ {[%clk 0:01:40.5]} 24... Kxf8 {[%clk 0:02:18.5]} 25. Bf4 {[%clk
0:01:35.1]} 25... d4 {[%clk 0:02:18.4]} 26. Ne4 {[%clk 0:01:32.5]} 26... Nxe6
{[%clk 0:02:19.5]} 27. Bg3 {[%clk 0:01:30]} 27... Re8 {[%clk 0:02:13.2]} 28. Nd6
{[%clk 0:01:30.4]} 28... Qd5 {[%clk 0:02:10.6]} 29. Nxe8 {[%clk 0:01:30.5]}
29... Kxe8 {[%clk 0:02:12.5]} 30. Re1 {[%clk 0:01:26.8]} 30... Kd7 {[%clk
0:02:12.3]} 31. Ne5+ {[%clk 0:01:26]} 31... Bxe5 {[%clk 0:02:12.8]} 32. Qxe5
{[%clk 0:01:23.7]} 32... d3 {[%clk 0:02:13.7]} 33. Qxd5+ {[%clk 0:01:13.7]}
33... Nxd5 {[%clk 0:02:14.2]} 34. Kg2 {[%clk 0:01:06.8]} 34... a5 {[%clk
0:02:08.5]} 35. Rd1 {[%clk 0:01:05.2]} 35... Kc6 {[%clk 0:02:08.9]} 36. Kf3
{[%clk 0:01:04.9]} 36... Nd4+ {[%clk 0:02:06.8]} 37. Ke4 {[%clk 0:01:04.4]}
37... Nb3 {[%clk 0:02:02.9]} 38. Kxd3 {[%clk 0:01:02.8]} 38... b4 {[%clk
0:02:03.2]} 39. Kc4 {[%clk 0:01:01.6]} 39... bxa3 {[%clk 0:01:48]} 40. bxa3
{[%clk 0:01:01.2]} 40... a4 {[%clk 0:01:38.6]} 41. Rxd5 {[%clk 0:01:00.8]} 41...
Na5+ {[%clk 0:01:37.6]} 42. Rxa5 {[%clk 0:01:01.2]} 1-0

[Event "*** MasterClass Titled Tuesday Blitz"]
[Site "Chess.com"]
[Date "2017.11.07"]
[Round "3"]
[White "Lunaticx"]
[Black "asms9699"]
[Result "1-0"]
[WhiteElo "2685"]
[BlackElo "2423"]
[TimeControl "180+2"]
[EndTime "14:42:14 PST"]
[Termination "Lunaticx won on time"]

1. d4 {[%clk 0:03:01.8]} 1... d5 {[%clk 0:02:56.4]} 2. c4 {[%clk 0:03:02.8]}
2... c6 {[%clk 0:02:57]} 3. Nf3 {[%clk 0:03:03.9]} 3... Nf6 {[%clk 0:02:57.7]}
4. e3 {[%clk 0:03:05.3]} 4... a6 {[%clk 0:02:56.6]} 5. b3 {[%clk 0:03:03]} 5...
e6 {[%clk 0:02:53.1]} 6. Nbd2 {[%clk 0:03:00.6]} 6... Nbd7 {[%clk 0:02:53.8]} 7.
Bd3 {[%clk 0:03:01.3]} 7... Bd6 {[%clk 0:02:49]} 8. O-O {[%clk 0:03:02]} 8...
O-O {[%clk 0:02:49.8]} 9. Re1 {[%clk 0:03:02.9]} 9... e5 {[%clk 0:02:49.2]} 10.
cxd5 {[%clk 0:03:00.7]} 10... Nxd5 {[%clk 0:02:45.3]} 11. Nc4 {[%clk 0:02:57.8]}
11... Bb4 {[%clk 0:02:37.8]} 12. Rf1 {[%clk 0:02:49.7]} 12... exd4 {[%clk
0:02:28.4]} 13. exd4 {[%clk 0:02:45.9]} 13... h6 {[%clk 0:02:22.6]} 14. Bc2
{[%clk 0:02:38.2]} 14... N7f6 {[%clk 0:02:11.4]} 15. Qd3 {[%clk 0:02:38.7]}
15... Qc7 {[%clk 0:01:43.3]} 16. a3 {[%clk 0:02:36.2]} 16... Bd6 {[%clk
0:01:30.4]} 17. Nfe5 {[%clk 0:02:35.2]} 17... Be6 {[%clk 0:01:22.3]} 18. Nxd6
{[%clk 0:02:30.7]} 18... Qxd6 {[%clk 0:01:24.2]} 19. Bxh6 {[%clk 0:02:31.1]}
19... Rfd8 {[%clk 0:00:53.1]} 20. Qg3 {[%clk 0:02:20.5]} 20... Qf8 {[%clk
0:00:50.1]} 21. Bg5 {[%clk 0:02:17.7]} 21... g6 {[%clk 0:00:44.2]} 22. f4 {[%clk
0:02:05.5]} 22... Qg7 {[%clk 0:00:23.7]} 23. Rae1 {[%clk 0:02:04.9]} 23... Bf5
{[%clk 0:00:21]} 24. Bxf5 {[%clk 0:01:56.8]} 24... gxf5 {[%clk 0:00:22.9]} 25.
Qh4 {[%clk 0:01:52.4]} 25... Rd6 {[%clk 0:00:20.4]} 26. Rf3 {[%clk 0:01:52.7]}
26... Ne4 {[%clk 0:00:17.7]} 27. Rxe4 {[%clk 0:01:41]} 27... fxe4 {[%clk
0:00:18.2]} 28. Rg3 {[%clk 0:01:42.4]} 28... Rg6 {[%clk 0:00:07.6]} 29. f5
{[%clk 0:01:37]} 29... f6 {[%clk 0:00:03.8]} 30. Nxg6 {[%clk 0:01:29.7]} 30...
fxg5 {[%clk 0:00:04.9]} 31. Rxg5 {[%clk 0:01:31.6]} 31... Re8 {[%clk 0:00:02.9]}
32. Ne5 {[%clk 0:01:31.9]} 1-0

[Event "*** MasterClass Titled Tuesday Blitz"]
[Site "Chess.com"]
[Date "2017.11.07"]
[Round "3"]
[White "Tarlev_Konstantin"]
[Black "danyuffa"]
[Result "0-1"]
[WhiteElo "2620"]
[BlackElo "2648"]
[TimeControl "180+2"]
[EndTime "14:42:16 PST"]
[Termination "danyuffa won by resignation"]

1. e4 {[%clk 0:03:01.9]} 1... c6 {[%clk 0:02:58]} 2. d4 {[%clk 0:03:01.2]} 2...
d5 {[%clk 0:02:59]} 3. Nc3 {[%clk 0:03:02.7]} 3... dxe4 {[%clk 0:02:59.9]} 4.
Nxe4 {[%clk 0:03:04.3]} 4... Bf5 {[%clk 0:03:01.5]} 5. Ng3 {[%clk 0:03:05.9]}
5... Bg6 {[%clk 0:03:02.7]} 6. h4 {[%clk 0:03:07.5]} 6... h6 {[%clk 0:03:03.6]}
7. Nf3 {[%clk 0:03:09.1]} 7... e6 {[%clk 0:03:01.9]} 8. h5 {[%clk 0:03:03]} 8...
Bh7 {[%clk 0:03:02.7]} 9. Bd3 {[%clk 0:03:04.7]} 9... Bxd3 {[%clk 0:03:03.5]}
10. Qxd3 {[%clk 0:03:06.3]} 10... Nd7 {[%clk 0:03:05]} 11. Bd2 {[%clk
0:03:06.5]} 11... Ngf6 {[%clk 0:03:06.6]} 12. O-O-O {[%clk 0:03:07.8]} 12... Bd6
{[%clk 0:03:08.2]} 13. Ne4 {[%clk 0:03:07.5]} 13... Nxe4 {[%clk 0:03:09.2]} 14.
Qxe4 {[%clk 0:03:08.5]} 14... Nf6 {[%clk 0:03:10.8]} 15. Qe2 {[%clk 0:03:09.5]}
15... Bc7 {[%clk 0:03:11.4]} 16. Kb1 {[%clk 0:03:01.6]} 16... Qd5 {[%clk
0:03:10]} 17. Bc1 {[%clk 0:02:54]} 17... O-O-O {[%clk 0:02:57.4]} 18. Ne5 {[%clk
0:02:51.5]} 18... Rhf8 {[%clk 0:02:57.4]} 19. f3 {[%clk 0:02:44.1]} 19... Qb5
{[%clk 0:02:44.2]} 20. c4 {[%clk 0:02:44]} 20... Qa6 {[%clk 0:02:43.2]} 21. g4
{[%clk 0:02:39.4]} 21... Bxe5 {[%clk 0:02:41.3]} 22. dxe5 {[%clk 0:02:38.5]}
22... Nd7 {[%clk 0:02:38.2]} 23. g5 {[%clk 0:02:34.1]} 23... hxg5 {[%clk
0:02:38.7]} 24. Bxg5 {[%clk 0:02:34.9]} 24... Rde8 {[%clk 0:02:40.2]} 25. b3
{[%clk 0:01:54.4]} 25... Qa5 {[%clk 0:02:35.2]} 26. Rhe1 {[%clk 0:01:54.4]}
26... f6 {[%clk 0:02:31.8]} 27. Bf4 {[%clk 0:01:43.1]} 27... Nxe5 {[%clk
0:02:31.2]} 28. Bxe5 {[%clk 0:01:23.7]} 28... Qxe5 {[%clk 0:02:18.7]} 29. Qxe5
{[%clk 0:01:23.8]} 29... fxe5 {[%clk 0:02:20.6]} 30. Rxe5 {[%clk 0:01:15.9]}
30... Rxf3 {[%clk 0:02:20.7]} 31. Rg1 {[%clk 0:01:09.2]} 31... Rf7 {[%clk
0:02:16.6]} 32. Rg6 {[%clk 0:01:08.7]} 32... Kd7 {[%clk 0:02:15.3]} 33. Kb2
{[%clk 0:01:07]} 33... Ree7 {[%clk 0:02:15.1]} 34. Ka3 {[%clk 0:01:07.1]} 34...
Rf5 {[%clk 0:02:10.2]} 35. Rg5 {[%clk 0:00:33.5]} 35... Rxe5 {[%clk 0:02:10.6]}
36. Rxe5 {[%clk 0:00:34.7]} 36... Kd6 {[%clk 0:02:10.3]} 37. Rg5 {[%clk
0:00:35.9]} 37... e5 {[%clk 0:02:11.5]} 38. Kb2 {[%clk 0:00:37.5]} 38... Ke6
{[%clk 0:02:07.5]} 39. Kc2 {[%clk 0:00:37.2]} 39... Rd7 {[%clk 0:02:06.7]} 40.
a4 {[%clk 0:00:31.6]} 40... Kf6 {[%clk 0:02:06.7]} 41. Rg6+ {[%clk 0:00:29]}
41... Kf5 {[%clk 0:02:07.9]} 42. a5 {[%clk 0:00:26.9]} 42... a6 {[%clk
0:02:08.9]} 43. b4 {[%clk 0:00:28.3]} 43... e4 {[%clk 0:02:09.5]} 44. b5 {[%clk
0:00:30]} 44... cxb5 {[%clk 0:02:09.8]} 45. cxb5 {[%clk 0:00:31.3]} 45... axb5
{[%clk 0:02:10.8]} 46. Rb6 {[%clk 0:00:30.2]} 46... e3 {[%clk 0:02:11.5]} 0-1

[Event "*** MasterClass Titled Tuesday Blitz"]
[Site "Chess.com"]
[Date "2017.11.07"]
[Round "3"]
[White "chessdude"]
[Black "michaelq2d5"]
[Result "1/2-1/2"]
[WhiteElo "2488"]
[BlackElo "2631"]
[TimeControl "180+2"]
[EndTime "14:42:19 PST"]
[Termination "Game drawn by repetition"]

1. e4 {[%clk 0:03:01.9]} 1... e5 {[%clk 0:03:01.3]} 2. Nf3 {[%clk 0:03:02.7]}
2... Nc6 {[%clk 0:03:03]} 3. Bc4 {[%clk 0:03:03.6]} 3... Bc5 {[%clk 0:03:02.8]}
4. O-O {[%clk 0:03:04.1]} 4... Nf6 {[%clk 0:03:03.3]} 5. d3 {[%clk 0:03:05.5]}
5... d6 {[%clk 0:03:04.5]} 6. c3 {[%clk 0:03:06.1]} 6... a6 {[%clk 0:03:05.6]}
7. a4 {[%clk 0:03:06.8]} 7... O-O {[%clk 0:03:03.2]} 8. h3 {[%clk 0:03:04.2]}
8... h6 {[%clk 0:03:03.4]} 9. Re1 {[%clk 0:03:04.3]} 9... Ba7 {[%clk 0:03:04.3]}
10. Nbd2 {[%clk 0:02:59.3]} 10... Re8 {[%clk 0:03:05.2]} 11. b4 {[%clk 0:02:55]}
11... Be6 {[%clk 0:03:05]} 12. Bxe6 {[%clk 0:02:54.3]} 12... Rxe6 {[%clk
0:03:05.8]} 13. Qc2 {[%clk 0:02:55.6]} 13... d5 {[%clk 0:03:01.4]} 14. Nf1
{[%clk 0:02:56.1]} 14... dxe4 {[%clk 0:02:20]} 15. dxe4 {[%clk 0:02:56]} 15...
a5 {[%clk 0:02:21.7]} 16. b5 {[%clk 0:02:42.2]} 16... Ne7 {[%clk 0:02:22.9]} 17.
Be3 {[%clk 0:02:43.4]} 17... Bxe3 {[%clk 0:02:23.2]} 18. Nxe3 {[%clk 0:02:45]}
18... Ng6 {[%clk 0:02:24.5]} 19. Rad1 {[%clk 0:02:38.7]} 19... Qe7 {[%clk
0:02:21.5]} 20. Nd5 {[%clk 0:02:39.8]} 20... Qc5 {[%clk 0:02:22.5]} 21. Nxf6+
{[%clk 0:02:33.6]} 21... Rxf6 {[%clk 0:02:23.1]} 22. Rd5 {[%clk 0:02:34.9]}
22... Qe7 {[%clk 0:02:15.2]} 23. Qd1 {[%clk 0:02:09.9]} 23... Rc8 {[%clk
0:01:41.6]} 24. g3 {[%clk 0:02:08.8]} 24... Qa3 {[%clk 0:01:17.8]} 25. Re3
{[%clk 0:02:02.8]} 25... Rd6 {[%clk 0:01:08.9]} 26. Kg2 {[%clk 0:01:46.6]} 26...
Ne7 {[%clk 0:00:56.2]} 27. Rxd6 {[%clk 0:01:39.9]} 27... cxd6 {[%clk 0:00:56.7]}
28. c4 {[%clk 0:01:24.4]} 28... Qb4 {[%clk 0:00:57.3]} 29. Nd2 {[%clk
0:01:24.5]} 29... f5 {[%clk 0:00:58.6]} 30. exf5 {[%clk 0:01:11]} 30... Nxf5
{[%clk 0:00:59.2]} 31. Rd3 {[%clk 0:01:12.6]} 31... Nd4 {[%clk 0:00:54.5]} 32.
Qg4 {[%clk 0:01:13.5]} 32... Rf8 {[%clk 0:00:52.7]} 33. Qd7 {[%clk 0:01:05.6]}
33... Rf7 {[%clk 0:00:43.8]} 34. Qe8+ {[%clk 0:01:02.6]} 34... Rf8 {[%clk
0:00:44.9]} 35. Qd7 {[%clk 0:01:03.3]} 35... Rf7 {[%clk 0:00:45.8]} 36. Qe8+
{[%clk 0:00:59]} 36... Rf8 {[%clk 0:00:47]} 37. Qd7 {[%clk 0:00:59.6]} 1/2-1/2